fUST/lending_fUST_20250525
["ID","MTS","AMOUNT","RATE_DAILY","PERIOD"]
[362286623,1748158009615,-300.0,0.00018803,2]
[362286624,1748158009638,-300.0,0.00018804,2]
[362286625,1748158009662,-300.0,0.00018804,2]
[362286626,1748158009686,-300.0,0.00018804,2]
[362286627,1748158009709,-300.0,0.00018804,2]
[362286628,1748158009734,-1200.0,0.00018804,2]
[362286629,1748158009760,-500.0,0.00018804,2]
[362286630,1748158009784,-523.73958124,0.00018804,2]
[362286631,1748158009810,-500.0,0.00018804,2]
[362286632,1748158009836,-500.0,0.00018804,2]
[362286633,1748158009860,-500.0,0.00018804,2]
[362286634,1748158009886,-500.0,0.00018804,2]
[362286635,1748158009912,-502.51732612,0.00018804,2]
[362286636,1748158009938,-500.0,0.00018804,2]
[362286637,1748158009963,-500.0,0.00018804,2]
[362286638,1748158009988,-188.42863052,0.00018804,2]
[362286639,1748158010014,-500.0,0.00018804,2]
[362286640,1748158010040,-500.0,0.00018804,2]
[362286641,1748158010065,-500.0,0.00018804,2]
[362286642,1748158010242,-500.0,0.00018804,2]
[362286643,1748158010266,-500.0,0.00018804,2]
[362286644,1748158010293,-500.0,0.00018804,2]
[362286645,1748158010317,-500.0,0.00018804,2]
[362286646,1748158010343,-500.0,0.00018804,2]
[362286647,1748158010368,-500.0,0.00018804,2]
[362286648,1748158010394,-500.0,0.00018804,2]
[362286649,1748158010419,-500.0,0.00018804,2]
[362286650,1748158010445,-500.0,0.00018804,2]
[362286651,1748158010471,-500.0,0.00018804,2]
[362286652,1748158010496,-500.0,0.00018804,2]
[362286653,1748158010523,-500.0,0.00018804,2]
[362286654,1748158010549,-500.0,0.00018804,2]
[362286655,1748158010575,-500.0,0.00018804,2]
[362286656,1748158010600,-500.0,0.00018804,2]
[362286657,1748158010626,-500.0,0.00018804,2]
[362286658,1748158010650,-500.0,0.00018804,2]
[362286659,1748158010674,-500.0,0.00018804,2]
[362286660,1748158010699,-500.0,0.00018804,2]
[362286661,1748158010723,-500.0,0.00018804,2]
[362286662,1748158010748,-500.0,0.00018804,2]
[362286663,1748158010773,-500.0,0.00018804,2]
[362286664,1748158010798,-500.0,0.00018804,2]
[362286665,1748158010822,-500.0,0.00018804,2]
[362286666,1748158010847,-500.0,0.00018804,2]
[362286667,1748158010874,-500.0,0.00018804,2]
[362286668,1748158010899,-500.0,0.00018804,2]
[362286669,1748158010923,-500.0,0.00018804,2]
[362286670,1748158010948,-376.28190496,0.00018804,2]
[362286671,1748158010973,-500.0,0.00018804,2]
[362286672,1748158010998,-500.0,0.00018804,2]
[362286673,1748158011024,-500.0,0.00018804,2]
[362286674,1748158011050,-500.0,0.00018804,2]
[362286675,1748158011076,-500.0,0.00018804,2]
[362286676,1748158011101,-500.0,0.00018804,2]
[362286677,1748158011127,-500.0,0.00018804,2]
[362286678,1748158011152,-500.0,0.00018804,2]
[362286679,1748158011176,-515.52758517,0.00018804,2]
[362286680,1748158011199,-50000.0,0.00018806,2]
[362286681,1748158011223,-500.0,0.00018809,2]
[362286682,1748158011247,-500.0,0.00018809,2]
[362286683,1748158011272,-161.13107063,0.00018809,2]
[362286684,1748158011298,-500.0,0.00018809,2]
[362286685,1748158011321,-190.67189216,0.00018809,2]
[362286686,1748158011347,-500.0,0.00018809,2]
[362286687,1748158011374,-500.0,0.00018809,2]
[362286688,1748158011398,-500.0,0.00018809,2]
[362286689,1748158011424,-500.0,0.00018809,2]
[362286690,1748158011448,-500.0,0.00018809,2]
[362286691,1748158011472,-500.0,0.00018809,2]
[362286692,1748158011495,-200.0,0.00018809,10]
[362286693,1748158011518,-200.0,0.00018809,10]
[362286694,1748158011541,-200.0,0.00018809,10]
[362286695,1748158011563,-200.0,0.00018809,10]
[362286696,1748158011585,-200.0,0.00018809,10]
[362286697,1748158011607,-200.0,0.00018809,10]
[362286698,1748158011630,-200.0,0.00018809,10]
[362286699,1748158011653,-200.0,0.00018809,10]
[362286700,1748158011675,-200.0,0.00018809,10]
[362286701,1748158011698,-200.0,0.00018809,10]
[362286702,1748158011720,-200.0,0.00018809,10]
[362286703,1748158011743,-200.0,0.00018809,10]
[362286704,1748158011766,-200.0,0.00018809,10]
[362286705,1748158011788,-200.0,0.00018809,10]
[362286706,1748158011812,-200.0,0.00018809,10]
[362286707,1748158011835,-200.0,0.00018809,10]
[362286708,1748158011858,-200.0,0.00018809,10]
[362286709,1748158011881,-200.0,0.00018809,10]
[362286710,1748158012058,-200.0,0.00018809,10]
[362286711,1748158012082,-200.0,0.00018809,10]
[362286712,1748158012106,-200.0,0.00018809,10]
[362286713,1748158012129,-200.0,0.00018809,10]
[362286714,1748158012153,-200.0,0.00018809,10]
[362286715,1748158012177,-200.0,0.00018809,10]
[362286716,1748158012199,-203.498717,0.00018809,10]
[362286717,1748158012221,-90520.47954557,0.0001881,2]
[362286718,1748158012245,-686.80973513,0.00018825,2]
[362286719,1748158012268,-686.80973513,0.0001885,2]
[362286720,1748158012293,-686.80973513,0.00018875,2]
[362286721,1748158012316,-151.0,0.000189,2]
[362286722,1748158012341,-151.0,0.000189,2]
[362286723,1748158012367,-686.80973513,0.000189,2]
[362286724,1748158012393,-15517.93326749,0.00018998,2]
[362286727,1748158047611,10000.0,0.0002465,120]
[362286729,1748158078353,1081.0,0.0002191,30]
[362286732,1748158093989,11281.23018337,0.000125,2]
[362286733,1748158098342,-300.0,0.00017973,2]
[362286734,1748158098368,-937.73,0.00017974,2]
[362286735,1748158119322,385.78632816,0.00015,2]
[362286737,1748158120278,369.60178198,0.00015,2]
[362286739,1748158127740,-165.67352884,0.000176,2]
[362286740,1748158129827,-760.1264274,0.000176,2]
[362286741,1748158131921,-154.24555546,0.000176,2]
[362286742,1748158134202,-390.00461032,0.000176,2]
[362286743,1748158135793,-391.54639994,0.000176,2]
[362286823,1748158233423,-555.2955501,0.00017166,2]
[362286824,1748158233434,-205.0038556,0.000176,2]
[362286825,1748158233444,-300.0,0.00017973,2]
[362286826,1748158233455,-300.0,0.00017973,2]
[362286827,1748158233465,-1200.0,0.00017973,2]
[362286828,1748158233478,-300.0,0.00017973,2]
[362286829,1748158233488,-300.0,0.00017973,2]
[362286830,1748158233498,-1464.6836223,0.00017974,2]
[362286831,1748158233585,-22497.5863777,0.00017974,2]
[362286832,1748158233595,-5805.38142235,0.00018,2]
[362286833,1748158233605,-609.07129601,0.00018,2]
[362286834,1748158233615,-3540.69175988,0.00018082,2]
[362286835,1748158233625,-181.70248916,0.00018082,3]
[362286836,1748158233635,-192.7484775,0.00018606,2]
[362286837,1748158233644,-500.0,0.00018802,2]
[362286838,1748158233654,-500.0,0.00018802,2]
[362286839,1748158233663,-500.0,0.00018802,2]
[362286840,1748158233673,-500.0,0.00018802,2]
[362286841,1748158233682,-500.0,0.00018802,2]
[362286842,1748158233692,-500.0,0.00018802,2]
[362286843,1748158233702,-503.93080988,0.00018802,2]
[362286844,1748158233712,-500.0,0.00018802,2]
[362286845,1748158233722,-500.0,0.00018802,2]
[362286846,1748158233732,-500.0,0.00018802,2]
[362286847,1748158233741,-346.60369432,0.00018802,2]
[362286848,1748158233753,-500.0,0.00018802,2]
[362286849,1748158233763,-500.0,0.00018802,2]
[362286850,1748158233773,-500.0,0.00018802,2]
[362286851,1748158233783,-237.6281905,0.00018802,2]
[362286852,1748158233793,-500.0,0.00018802,2]
[362286853,1748158233803,-500.0,0.00018802,2]
[362286854,1748158233813,-500.0,0.00018802,2]
[362286855,1748158233823,-500.0,0.00018802,2]
[362286856,1748158233833,-500.0,0.00018802,2]
[362286857,1748158233843,-500.0,0.00018802,2]
[362286858,1748158233853,-500.0,0.00018802,2]
[362286859,1748158233863,-500.0,0.00018802,2]
[362286860,1748158233873,-500.0,0.00018802,2]
[362286861,1748158233882,-500.0,0.00018802,2]
[362286862,1748158233892,-500.0,0.00018802,2]
[362286863,1748158233902,-262.93470554,0.00018802,2]
[362286864,1748158233912,-500.0,0.00018802,2]
[362286865,1748158233922,-500.0,0.00018802,2]
[362286866,1748158233932,-500.0,0.00018802,2]
[362286867,1748158233941,-3695.69825899,0.0001881,2]
[362286868,1748158233954,-171.05157814,0.0001881,2]
[362286869,1748158233965,-496.43962662,0.000189,2]
[362286870,1748158233974,-500.0,0.00018997,2]
[362286871,1748158233984,-500.0,0.00018997,2]
[362286872,1748158233993,-333.47032451,0.00018997,2]
[362286873,1748158234002,-562.79174944,0.00018997,2]
[362286874,1748158234013,-500.0,0.00018997,2]
[362286875,1748158234022,-500.0,0.00018997,2]
[362286876,1748158234032,-500.0,0.00018997,2]
[362286877,1748158234041,-37936.33655229,0.00018998,2]
[362286893,1748158238330,-300.0,0.00017972,2]
[362286894,1748158238340,-500.0,0.00018802,2]
[362286895,1748158238349,-500.0,0.00018802,2]
[362286896,1748158238359,-500.0,0.00018802,2]
[362286897,1748158238369,-500.0,0.00018802,2]
[362286898,1748158238379,-190.6,0.00018802,2]
[362286899,1748158238390,-309.4,0.00018802,2]
[362286900,1748158238399,-500.0,0.00018802,2]
[362286901,1748158238409,-500.0,0.00018802,2]
[362286902,1748158238418,-500.0,0.00018802,2]
[362286903,1748158238427,-500.0,0.00018802,2]
[362286904,1748158238437,-500.0,0.00018802,2]
[362286905,1748158238446,-500.0,0.00018802,2]
[362286906,1748158238455,-500.0,0.00018802,2]
[362286908,1748158238465,-500.0,0.00018802,2]
[362286909,1748158238475,-500.0,0.00018802,2]
[362286910,1748158238486,-500.0,0.00018802,2]
[362286911,1748158238497,-500.0,0.00018802,2]
[362286912,1748158238506,-5007.33330366,0.00018998,2]
[362286984,1748158240884,-52184.69474209,0.00018998,2]
[362286986,1748158240894,-160.0,0.00018999,2]
[362286988,1748158240903,-894.64583333,0.00019,3]
[362286990,1748158240912,-314.64711426,0.00019,3]
[362286992,1748158240921,-12652.24558203,0.00019,3]
[362286994,1748158240930,-17604.84814177,0.00019,3]
[362286996,1748158240940,-636.41601916,0.00019,2]
[362287299,1748158243680,-246.12284702,0.000175,2]
[362287301,1748158243689,-1815.43196044,0.00019,2]
[362287326,1748158246808,-33750.29171318,0.00019,2]
[362287347,1748158470023,442.362299,0.00013699,2]
[362287356,1748158637942,-192.74847749,0.00016981,2]
[362287359,1748158967392,-155.25152251,0.00016972,2]
[362287431,1748159438932,-237.13944585,0.0001649,2]
[362287432,1748159438941,-580.716449,0.00016536,2]
[362287433,1748159438950,-300.0,0.00016998,2]
[362287434,1748159438961,-300.0,0.00016998,2]
[362287435,1748159438974,-300.0,0.00016998,2]
[362287437,1748159438984,-1200.0,0.00016998,2]
[362287438,1748159438994,-300.0,0.00016998,2]
[362287439,1748159439004,-583.42922716,0.00016999,2]
[362287440,1748159439014,-500.0,0.00016999,2]
[362287441,1748159439023,-500.0,0.00016999,2]
[362287442,1748159439032,-293.95422461,0.00016999,2]
[362287444,1748159439042,-229.91065363,0.00016999,2]
[362287445,1748159439053,-270.08934637,0.00016999,2]
[362287446,1748159439062,-109.41226244,0.00016999,2]
[362287447,1748159439074,-390.58773756,0.00016999,2]
[362287448,1748159439083,-500.0,0.00016999,2]
[362287449,1748159439092,-500.0,0.00016999,2]
[362287450,1748159439102,-167.10342332,0.00016999,2]
[362287451,1748159439111,-500.0,0.00016999,2]
[362287452,1748159439120,-358.23430912,0.00016999,2]
[362287511,1748159440868,-141.76569088,0.00016999,2]
[362287513,1748159440878,-189.23430912,0.00016999,2]
[362287515,1748159440890,-137.05916143,0.00016999,2]
[362287517,1748159440900,-500.0,0.00016999,2]
[362287520,1748159440910,-500.0,0.00016999,2]
[362287522,1748159440919,-500.0,0.00016999,2]
[362287523,1748159440928,-500.0,0.00016999,2]
[362287526,1748159440938,-405.58564939,0.00016999,2]
[362287538,1748159441045,-273.84843401,0.00016999,2]
[362287540,1748159441058,-226.15156599,0.00016999,2]
[362287542,1748159441067,-154.05967821,0.00016999,2]
[362287544,1748159441079,-345.94032179,0.00016999,2]
[362287545,1748159441089,-500.0,0.00016999,2]
[362287546,1748159441111,-168.04327821,0.00017,2]
[362287877,1748159447099,-381.92818453,0.00017,2]
[362287878,1748159447147,-2954.79151319,0.00017,2]
[362287879,1748159447159,-550.73773191,0.00017,2]
[362287880,1748159447170,-1085.09280307,0.00017,2]
[362287903,1748159542372,181.2,0.00016,2]
[362287904,1748159544307,439.288645,0.00013699,2]
[362287909,1748160133168,290.358225,0.00015999,2]
[362287915,1748160271336,200.0,0.00024317,120]
[362287919,1748160382975,1907.815517,0.00015998,2]
[362287927,1748160451052,200.0,0.00024279,120]
[362287932,1748160605731,1198.2785411,0.00015991,2]
[362287933,1748160630111,14981.8342128,0.00015991,2]
[362287946,1748160632902,-531.20326199,0.00016808,2]
[362287948,1748160632912,-217.12686399,0.00016899,2]
[362287949,1748160632921,-300.0,0.00016972,2]
[362287950,1748160632930,-300.0,0.00016972,2]
[362287951,1748160632939,-1200.0,0.00016972,2]
[362287952,1748160632949,-500.0,0.00016973,2]
[362287953,1748160632964,-446.39415791,0.00016973,2]
[362287954,1748160632974,-500.0,0.00016973,2]
[362287955,1748160632990,-500.0,0.00016973,2]
[362287956,1748160632999,-500.0,0.00016973,2]
[362287957,1748160633010,-500.0,0.00016973,2]
[362287958,1748160633020,-500.0,0.00016973,2]
[362287959,1748160633030,-500.0,0.00016973,2]
[362287960,1748160633042,-505.80466812,0.00016973,2]
[362287961,1748160633051,-500.0,0.00016973,2]
[362287964,1748160633062,-500.0,0.00016973,2]
[362287967,1748160633074,-500.0,0.00016973,2]
[362287971,1748160633084,-500.0,0.00016973,2]
[362287973,1748160633095,-500.0,0.00016973,2]
[362287975,1748160633105,-501.00371335,0.00016973,2]
[362287976,1748160633115,-537.18084073,0.00016973,2]
[362287979,1748160633125,-300.0,0.00016996,2]
[362287981,1748160633138,-500.0,0.00016997,2]
[362287983,1748160633149,-408.40045901,0.00016997,2]
[362287984,1748160633159,-255.76795722,0.00016997,2]
[362287987,1748160633170,-500.0,0.00016997,2]
[362287989,1748160633180,-8709.27312281,0.00016998,3]
[362288061,1748160641058,-300.0,0.00016972,2]
[362288063,1748160641068,-202.92149673,0.00016997,2]
[362288064,1748160641077,-545.06507215,0.00016997,2]
[362288065,1748160641087,-1715.49318031,0.00016998,3]
[362288066,1748160641096,-55587.86871934,0.00016998,2]
[362288068,1748160641107,-3170.51798777,0.00016998,2]
[362288294,1748160643420,447.040518,0.00013699,2]
[362288689,1748160956571,-170.0733576,0.00016127,2]
[362288690,1748160991350,200.0,0.00023809,120]
[362288700,1748161171601,200.0,0.00023967,120]
[362288701,1748161203913,254.0,0.000219,30]
[362288702,1748161234972,403.449583,0.00015999,2]
[362288705,1748161351264,200.0,0.00024386,120]
[362288706,1748161471787,200.0,0.00024135,120]
[362288707,1748161510318,6732.1969267,0.00015999,2]
[362288719,1748161706698,280.20212788,0.0001,2]
[362288721,1748161721437,4167.86019668,0.0001,2]
[362288722,1748161721460,35884.0500423,0.0001,2]
[362288723,1748161742702,5000.0,0.00015,2]
[362288724,1748161743605,441.4466424,0.00015,2]
[362288725,1748161743630,4558.5533576,0.00015,2]
[362288726,1748161743913,5000.0,0.00015,2]
[362288727,1748161744343,5000.0,0.00015,2]
[362288728,1748161744690,5000.0,0.00015,2]
[362288729,1748161745087,389.01657804,0.00015,2]
[362288730,1748161745110,4610.98342196,0.00015,2]
[362288731,1748161745507,5000.0,0.00015,2]
[362288732,1748161745913,5000.0,0.00015,2]
[362288733,1748161746318,5000.0,0.00015,2]
[362288734,1748161746741,5000.0,0.00015,2]
[362288735,1748161747169,5000.0,0.00015,2]
[362288736,1748161747574,243.21607462,0.00015,2]
[362288737,1748161747597,4756.78392538,0.00015,2]
[362288738,1748161747996,3893.97325276,0.00015,2]
[362288739,1748161748019,1106.02674724,0.00015,2]
[362288740,1748161748477,5000.0,0.00015,2]
[362288741,1748161748829,5000.0,0.00015,2]
[362288742,1748161749251,5000.0,0.00015,2]
[362288743,1748161749702,5000.0,0.00015,2]
[362288744,1748161750102,5000.0,0.00015,2]
[362288745,1748161750563,5000.0,0.00015,2]
[362288746,1748161751158,185.98937828,0.00015,2]
[362288747,1748161751182,4814.01062172,0.00015,2]
[362288748,1748161751581,5000.0,0.00015,2]
[362288749,1748161751998,5000.0,0.00015,2]
[362288843,1748161832292,-653.72746393,0.00016793,2]
[362288846,1748161832302,-150.72065641,0.00016899,2]
[362288848,1748161832312,-300.0,0.00016972,2]
[362288850,1748161832322,-300.0,0.00016972,2]
[362288852,1748161832331,-300.0,0.00016972,2]
[362288854,1748161832340,-1200.0,0.00016972,2]
[362288856,1748161832349,-500.0,0.00016973,2]
[362288858,1748161832359,-500.81146006,0.00016973,2]
[362288860,1748161832369,-500.0,0.00016973,2]
[362288861,1748161832378,-623.88696206,0.00016973,2]
[362288863,1748161832387,-500.0,0.00016973,2]
[362288866,1748161832397,-500.0,0.00016973,2]
[362288867,1748161832407,-500.0,0.00016973,2]
[362288869,1748161832416,-500.0,0.00016973,2]
[362288871,1748161832425,-500.0,0.00016973,2]
[362288874,1748161832435,-500.0,0.00016973,2]
[362288876,1748161832445,-500.0,0.00016998,2]
[362288878,1748161832454,-379.03757006,0.00016998,2]
[362288880,1748161832463,-160.0,0.00016998,2]
[362288882,1748161832473,-160.43817396,0.00016999,2]
[362288884,1748161832483,-160.0,0.00016999,2]
[362288886,1748161832492,-314.64711426,0.00016999,3]
[362288888,1748161832502,-12408.37253803,0.00016999,3]
[362289237,1748161843028,-300.0,0.00016998,2]
[362289239,1748161843038,-41.87307393,0.00016999,2]
[362289421,1748161846354,-9027.1655344,0.000169,2]
[362289422,1748161846363,-244.00724738,0.00016999,2]
[362289423,1748161846373,-615.32629904,0.00016999,2]
[362289424,1748161846383,-243.873044,0.00016999,3]
[362289425,1748161846392,-622.97135358,0.00016999,3]
[362289426,1748161869979,485.209603,0.00013699,2]
[362289429,1748161891121,200.0,0.00023929,120]
[362289431,1748161951029,200.0,0.00024485,120]
[362289432,1748162033854,429.2054529,0.00015999,2]
[362289443,1748162255000,357.0,0.00024658,120]
[362289450,1748162477037,201.724792,0.00015951,2]
[362289456,1748162529197,165.532573,0.00015951,2]
[362289457,1748162531168,-165.532573,0.00016031,2]
[362289459,1748162577165,5000.0,0.00016,2]
[362289463,1748162780334,5000.0,0.00016,2]
[362289466,1748162970049,205.70039041,0.00015742,2]
[362289467,1748162985169,5000.0,0.00016,2]
[362289471,1748163018972,460.949122,0.00013699,2]
[362289590,1748163043021,-907.655916,0.00016229,2]
[362289592,1748163043032,-1771.45524986,0.00016229,2]
[362289932,1748163046419,-751.514428,0.00016229,2]
[362289943,1748163046529,-1569.37440614,0.00016229,2]
[362289946,1748163046539,-211.08984742,0.00016393,2]
[362289948,1748163046551,-895.980154,0.0001666,2]
[362289950,1748163046561,-300.0,0.00016898,2]
[362289952,1748163046573,-300.0,0.00016899,2]
[362289954,1748163046583,-745.0,0.00016899,2]
[362289956,1748163046592,-167.75816955,0.000169,2]
[362289958,1748163046601,-8948.18912889,0.000169,2]
[362289960,1748163046611,-653.72746393,0.00016903,2]
[362289961,1748163046620,-615.76454054,0.00016973,2]
[362289963,1748163046629,-500.0,0.00016973,2]
[362289965,1748163046639,-501.18617219,0.00016973,2]
[362289967,1748163046649,-500.0,0.00016973,2]
[362289969,1748163046659,-500.0,0.00016973,2]
[362289971,1748163046668,-500.0,0.00016973,2]
[362289973,1748163046678,-500.0,0.00016973,2]
[362289975,1748163046687,-500.0,0.00016973,2]
[362289977,1748163046697,-500.0,0.00016973,2]
[362289980,1748163046707,-500.0,0.00016973,2]
[362289981,1748163046716,-504.32244069,0.00016973,2]
[362289983,1748163046726,-500.0,0.00016973,2]
[362289985,1748163046735,-500.0,0.00016973,2]
[362289987,1748163046744,-500.0,0.00016973,2]
[362289989,1748163046754,-500.0,0.00016973,2]
[362289991,1748163046769,-500.0,0.00016973,2]
[362289994,1748163046779,-503.54978116,0.00016973,2]
[362289996,1748163046788,-502.29406008,0.00016973,2]
[362289998,1748163046798,-204.27265152,0.00016973,2]
[362290000,1748163046808,-500.0,0.00016973,2]
[362290001,1748163046819,-500.0,0.00016973,2]
[362290003,1748163046828,-10392.16846844,0.0001698,3]
[362290005,1748163046838,-33514.46000383,0.0001698,2]
[362290008,1748163046855,-1328.2,0.0001698,2]
[362292215,1748163500261,-5000.0,0.00016328,2]
[362292216,1748163500285,-806.382139,0.0001666,2]
[362292217,1748163500308,-164.05670614,0.00016879,2]
[362292218,1748163500331,-300.0,0.00016898,2]
[362292219,1748163500355,-1200.0,0.00016899,2]
[362292220,1748163500378,-300.0,0.00016899,2]
[362292221,1748163500407,-8389.91182153,0.000169,2]
[362292222,1748163500977,-260.00433631,0.000169,2]
[362292223,1748163501002,-300.0,0.00016972,2]
[362292224,1748163501026,-300.0,0.00016972,2]
[362292225,1748163501048,-300.0,0.00016972,2]
[362292226,1748163501071,-500.0,0.00016973,2]
[362292227,1748163501094,-500.0,0.00016973,2]
[362292228,1748163501116,-500.0,0.00016973,2]
[362292229,1748163501138,-500.0,0.00016973,2]
[362292230,1748163501160,-500.0,0.00016973,2]
[362292231,1748163501182,-500.0,0.00016973,2]
[362292232,1748163501204,-500.0,0.00016973,2]
[362292233,1748163501226,-500.0,0.00016973,2]
[362292234,1748163501250,-516.0089763,0.00016973,2]
[362292235,1748163501272,-500.0,0.00016973,2]
[362292236,1748163501293,-500.0,0.00016973,2]
[362292237,1748163501318,-9484.33735406,0.00016975,2]
[362292238,1748163501355,-16160.35066667,0.00016975,2]
[362292239,1748163501387,-16160.35066667,0.00016975,2]
[362292240,1748163501639,-16160.35066667,0.00016975,2]
[362292241,1748163501794,-16160.35066667,0.00016975,2]
[362292242,1748163501959,-16160.35066667,0.00016975,2]
[362292243,1748163502134,-16160.35066667,0.00016975,2]
[362292244,1748163502282,-16160.35066667,0.00016975,2]
[362292245,1748163502413,-16160.35066667,0.00016975,2]
[362292246,1748163502545,-16160.35066667,0.00016975,2]
[362292247,1748163502715,-16160.35066667,0.00016975,2]
[362292248,1748163502975,-16160.35066667,0.00016975,2]
[362292249,1748163503015,-16160.35066667,0.00016975,2]
[362292250,1748163503172,-16160.35066667,0.00016975,2]
[362292251,1748163562211,-334.467427,0.00016102,2]
[362292252,1748163612788,201.7247927,0.00015908,2]
[362292253,1748163634563,-1819.1496213,0.00016102,2]
[362292254,1748163634586,-811.102782,0.00016659,2]
[362292255,1748163634610,-5000.0,0.00016806,2]
[362292256,1748163634632,-1200.0,0.00016826,2]
[362292257,1748163634655,-653.72746393,0.00016827,2]
[362292258,1748163634677,-316.63328244,0.00016874,2]
[362292259,1748163634707,-2163.34785033,0.000169,2]
[362292260,1748163634774,-6878.42709977,0.000169,2]
[362292261,1748163634798,-300.0,0.00016972,2]
[362292262,1748163634821,-300.0,0.00016972,2]
[362292263,1748163634844,-500.0,0.00016973,2]
[362292264,1748163634865,-500.85062816,0.00016973,2]
[362292265,1748163634889,-500.0,0.00016973,2]
[362292266,1748163634911,-504.49898345,0.00016973,2]
[362292267,1748163634932,-502.02358038,0.00016973,2]
[362292268,1748163634957,-500.0,0.00016973,2]
[362292269,1748163634981,-509.89381147,0.00016973,2]
[362292270,1748163635005,-500.0,0.00016973,2]
[362292271,1748163635028,-468.26689677,0.00016973,2]
[362292272,1748163635066,-31.73310323,0.00016973,2]
[362292273,1748163635088,-200.11622492,0.00016974,2]
[362292274,1748163635111,-430.72840933,0.00016974,2]
[362292275,1748163635136,-441.96563751,0.00016974,2]
[362292276,1748163635159,-500.0,0.00016974,2]
[362292277,1748163635183,-162.10536619,0.00016974,2]
[362292278,1748163635208,-500.0,0.00016974,2]
[362292279,1748163635232,-500.0,0.00016974,2]
[362292280,1748163635257,-500.0,0.00016974,2]
[362292281,1748163635281,-500.0,0.00016974,2]
[362292282,1748163635304,-500.0,0.00016974,2]
[362292283,1748163635329,-431.58840877,0.00016974,2]
[362292284,1748163635354,-500.0,0.00016974,2]
[362292285,1748163635378,-500.0,0.00016974,2]
[362292286,1748163635401,-500.0,0.00016974,2]
[362292287,1748163635424,-500.0,0.00016974,2]
[362292288,1748163635447,-500.0,0.00016974,2]
[362292289,1748163635473,-500.0,0.00016974,2]
[362292290,1748163635497,-500.0,0.00016974,2]
[362292291,1748163635524,-500.0,0.00016974,2]
[362292292,1748163635548,-500.0,0.00016974,2]
[362292293,1748163635572,-500.0,0.00016974,2]
[362292294,1748163635597,-500.0,0.00016974,2]
[362292295,1748163635621,-500.0,0.00016974,2]
[362292296,1748163635645,-500.0,0.00016974,2]
[362292297,1748163635670,-500.0,0.00016974,2]
[362292298,1748163635694,-265.72385005,0.00016974,2]
[362292299,1748163635740,-234.27614995,0.00016974,2]
[362292300,1748163635764,-500.0,0.00016974,2]
[362292301,1748163635787,-500.0,0.00016974,2]
[362292302,1748163635918,-500.0,0.00016974,2]
[362292303,1748163635947,-500.0,0.00016974,2]
[362292304,1748163635983,-500.0,0.00016974,2]
[362292305,1748163636011,-500.0,0.00016974,2]
[362292306,1748163636038,-500.0,0.00016974,2]
[362292307,1748163636063,-500.0,0.00016974,2]
[362292308,1748163636087,-500.0,0.00016974,2]
[362292309,1748163636119,-500.0,0.00016974,2]
[362292310,1748163636145,-500.0,0.00016974,2]
[362292311,1748163636168,-500.0,0.00016974,2]
[362292312,1748163636191,-500.0,0.00016974,2]
[362292313,1748163636215,-500.0,0.00016974,2]
[362292314,1748163636240,-500.0,0.00016974,2]
[362292315,1748163636264,-500.0,0.00016974,2]
[362292316,1748163636289,-500.0,0.00016974,2]